fUST/lending_fUST_20240921
["ID","MTS","AMOUNT","RATE_DAILY","PERIOD"]
[338807251,1726921845626,-478.879763,0.00014399,2]
[338807252,1726921845636,-514.840881,0.00014399,2]
[338807253,1726921845646,-151.0,0.00014399,2]
[338807254,1726921845656,-951.795086,0.00014399,2]
[338807255,1726921845665,-233.040417,0.00014399,2]
[338807256,1726921845674,-951.795086,0.00014399,2]
[338807257,1726921845683,-567.678595,0.00014399,2]
[338807258,1726921845693,-567.678595,0.00014399,2]
[338807259,1726921845703,-150.112233,0.000144,2]
[338807260,1726921845712,-150.112233,0.000144,2]
[338807261,1726921845722,-150.112233,0.000144,2]
[338807262,1726921845732,-150.112238,0.000144,2]
[338807263,1726921845742,-500.0,0.00014415,2]
[338807265,1726921845752,-522.33,0.00014415,2]
[338807266,1726921845761,-500.0,0.00014415,2]
[338807267,1726921845771,-14342.45,0.00014415,2]
[338807268,1726921845781,-2094.08,0.00014415,2]
[338807269,1726921845790,-500.0,0.00014416,2]
[338807270,1726921845800,-549.24,0.00014416,2]
[338807272,1726921845809,-49330.869997,0.00014417,3]
[338807274,1726921845818,-500.0,0.00014417,2]
[338807275,1726921845828,-500.0,0.00014417,2]
[338807276,1726921845838,-463.39857403,0.00014417,2]
[338807277,1726921845849,-500.0,0.00014417,2]
[338807278,1726921845858,-500.0,0.00014417,2]
[338807280,1726921845867,-511.54,0.00014417,2]
[338807281,1726921845877,-500.0,0.00014417,2]
[338807282,1726921845886,-500.0,0.00014417,2]
[338807283,1726921845896,-240.6238477,0.00014417,2]
[338807284,1726921845906,-500.0,0.00014417,2]
[338807285,1726921845915,-808.54,0.00014417,2]
[338807287,1726921845925,-778.54,0.00014417,2]
[338807289,1726921845935,-245.79,0.00014417,2]
[338807290,1726921845944,-500.0,0.00014417,2]
[338807292,1726921845954,-541.98605961,0.00014417,2]
[338807293,1726921845964,-500.0,0.00014417,2]
[338807294,1726921845973,-505.26834954,0.00014417,2]
[338807296,1726921845983,-283.26,0.00014417,2]
[338807298,1726921845993,-500.0,0.00014417,2]
[338807299,1726921846002,-500.0,0.00014417,2]
[338807300,1726921846012,-419.17,0.00014417,2]
[338807301,1726921846021,-500.0,0.00014417,2]
[338807302,1726921846030,-500.0,0.00014417,2]
[338807304,1726921846041,-500.0,0.00014417,2]
[338807305,1726921846051,-500.0,0.00014417,2]
[338807306,1726921846061,-500.0,0.00014417,2]
[338807307,1726921846071,-500.0,0.00014417,2]
[338807308,1726921846083,-500.0,0.00014417,2]
[338807309,1726921846095,-500.0,0.00014417,2]
[338807310,1726921846105,-500.0,0.00014417,2]
[338807311,1726921846116,-500.0,0.00014417,2]
[338807312,1726921846127,-500.0,0.00014417,2]
[338807313,1726921846137,-500.0,0.00014417,2]
[338807314,1726921846148,-1391.98,0.00014417,2]
[338807315,1726921846158,-500.0,0.00014417,2]
[338807316,1726921846168,-500.0,0.00014417,2]
[338807317,1726921846178,-500.0,0.00014417,2]
[338807318,1726921846187,-500.0,0.00014417,2]
[338807319,1726921846197,-276.73375857,0.00014417,2]
[338807320,1726921846206,-541.4,0.00014417,2]
[338807321,1726921846216,-500.0,0.00014417,2]
[338807322,1726921846225,-344.32,0.00014417,2]
[338807323,1726921846235,-500.0,0.00014417,2]
[338807324,1726921846245,-500.0,0.00014417,2]
[338807325,1726921846254,-485.8,0.00014417,2]
[338807326,1726921846263,-500.0,0.00014417,2]
[338807327,1726921846273,-500.0,0.00014417,2]
[338807328,1726921846282,-500.0,0.00014417,2]
[338807329,1726921846291,-450.54,0.00014417,2]
[338807330,1726921846301,-500.0,0.00014417,2]
[338807331,1726921846311,-500.0,0.00014417,2]
[338807332,1726921846320,-500.0,0.00014417,2]
[338807333,1726921846331,-500.0,0.00014417,2]
[338807334,1726921846340,-500.0,0.00014417,2]
[338807335,1726921846350,-500.0,0.00014417,2]
[338807336,1726921846370,-432.34,0.00014417,2]
[338807337,1726921846381,-652.0,0.00014417,2]
[338807338,1726921846391,-500.0,0.00014417,2]
[338807339,1726921846401,-500.0,0.00014417,2]
[338807340,1726921846411,-500.0,0.00014417,2]
[338807341,1726921846424,-500.0,0.00014417,2]
[338807342,1726921846435,-500.0,0.00014417,2]
[338807343,1726921846446,-439.28,0.00014417,2]
[338807344,1726921846456,-741.8,0.00014417,2]
[338807345,1726921846465,-418.46669836,0.00014417,2]
[338807346,1726921846806,-859.53314949,0.00014043,2]
[338807347,1726921846817,-500.0,0.00014124,2]
[338807348,1726921846826,-500.0,0.00014154,2]
[338807349,1726921846836,-500.0,0.00014154,2]
[338807350,1726921846846,-784.319508,0.00014154,2]
[338807351,1726921846855,-81.53330164,0.00014417,2]
[338807352,1726921846866,-500.0,0.00014417,2]
[338807353,1726921846875,-200.0,0.00014417,2]
[338807354,1726921846885,-667.977948,0.00014419,2]
[338807355,1726921846894,-667.977948,0.00014419,2]
[338807356,1726921846904,-151.0,0.00014419,2]
[338807357,1726921846915,-151.0,0.00014419,2]
[338807358,1726921846924,-151.0,0.00014419,2]
[338807359,1726921846934,-217.662492,0.00014419,2]
[338807360,1726921846944,-217.662492,0.00014419,2]
[338807361,1726921846954,-192.65949,0.00014419,2]
[338807362,1726921846963,-192.65949,0.00014419,2]
[338807363,1726921846973,-784.319508,0.00014419,2]
[338807364,1726921846982,-4484.09097807,0.00014419,3]
[338807365,1726921847250,-500.0,0.00014141,2]
[338807366,1726921847260,-126.89,0.00014141,2]
[338807367,1726921853225,24900.0,0.00013353,2]
[338807368,1726921868631,8969.2603648,0.00013236,2]
[338807369,1726921907857,846.3206586,0.00013252,2]
[338807371,1726921923553,401.510783,0.00014,2]
[338807372,1726921953919,3000.0,0.00013203,2]
[338807374,1726921976942,370.4809993,0.00013241,2]
[338807375,1726922025653,412.8647431,0.00013135,2]
[338807377,1726922074235,250.0,0.00013208,2]
[338807378,1726922275998,11770.3182084,0.00013326,2]
[338807379,1726922295862,727.773698,0.00013699,2]
[338807380,1726922323862,407.39613999,0.00014014,2]
[338807382,1726922481389,204.57,0.00014014,2]
[338807383,1726922514990,432.48722876,0.00014014,2]
[338807384,1726922523788,815.07,0.00014014,2]
[338807385,1726922705176,378.42632513,0.00014004,2]
[338807386,1726922739282,150.0,0.00013975,2]
[338807387,1726922779961,1899.07014776,0.00014013,2]
[338807388,1726922836114,545.830274,0.00013699,2]
[338807389,1726922920735,331.12303448,0.00013993,2]
[338807437,1726923032103,-1899.07014776,0.00014016,2]
[338807439,1726923032112,-1899.07014776,0.00014019,2]
[338807441,1726923032122,-1770.59932665,0.00014021,2]
[338807445,1726923032158,-128.47082111,0.00014021,2]
[338807447,1726923032167,-910.80771996,0.00014022,2]
[338807449,1726923032177,-897.4109651,0.00014024,2]
[338807451,1726923032188,-293.65170502,0.00014024,2]
[338807474,1726923038481,-708.00747764,0.00014024,2]
[338807475,1726923038491,-300.0,0.00014092,2]
[338807476,1726923038500,-300.0,0.00014092,2]
[338807477,1726923038509,-39449.4174814,0.00014093,2]
[338807478,1726923038520,-22434.1166158,0.00014093,2]
[338807479,1726923038529,-61883.5340972,0.00014093,2]
[338807480,1726923038539,-545.9,0.00014094,2]
[338807481,1726923038549,-500.0,0.00014094,2]
[338807482,1726923038559,-500.0,0.00014094,2]
[338807483,1726923038568,-500.0,0.00014094,2]
[338807484,1726923038578,-520.0068009,0.00014094,2]
[338807485,1726923038588,-500.0,0.00014094,2]
[338807486,1726923038597,-46182.3989841,0.00014094,2]
[338807487,1726923038607,-185650.602292,0.00014094,2]
[338807488,1726923038616,-150.112233,0.000141,2]
[338807489,1726923038626,-150.112233,0.000141,2]
[338807490,1726923038636,-150.112233,0.000141,2]
[338807491,1726923038646,-150.112233,0.000141,2]
[338807492,1726923038655,-250.0,0.000141,2]
[338807493,1726923038665,-500.0,0.000141,2]
[338807494,1726923038675,-500.0,0.000141,2]
[338807495,1726923038684,-500.0,0.000141,2]
[338807496,1726923038693,-500.0,0.000141,2]
[338807497,1726923038703,-500.0,0.000141,2]
[338807498,1726923038713,-297.61031857,0.000141,2]
[338807499,1726923038722,-500.0,0.000141,2]
[338807500,1726923038731,-500.0,0.000141,2]
[338807501,1726923038740,-257.84896523,0.000141,2]
[338807502,1726923038750,-450.0,0.000141,2]
[338807503,1726923038760,-500.0,0.000141,2]
[338807504,1726923038769,-500.0,0.000141,2]
[338807505,1726923038778,-500.0,0.000141,2]
[338807506,1726923038787,-500.0,0.000141,2]
[338807507,1726923038797,-500.0,0.000141,2]
[338807508,1726923038807,-500.0,0.000141,2]
[338807509,1726923038817,-500.0,0.000141,2]
[338807510,1726923038826,-500.0,0.000141,2]
[338807511,1726923038835,-500.0,0.000141,2]
[338807512,1726923038847,-61883.5340972,0.00014102,2]
[338807513,1726923038859,-281.25554231,0.00014102,2]
[338807514,1726923038869,-341.95014721,0.00014102,2]
[338807515,1726923038879,-500.0,0.00014102,2]
[338807516,1726923038888,-500.0,0.00014102,2]
[338807517,1726923038898,-500.0,0.00014102,2]
[338807518,1726923038907,-500.0,0.00014102,2]
[338807519,1726923038918,-500.0,0.00014102,2]
[338807520,1726923038927,-500.0,0.00014102,2]
[338807521,1726923038939,-500.0,0.00014102,2]
[338807522,1726923038950,-234.4142681,0.00014102,2]
[338807523,1726923038959,-500.0,0.00014102,2]
[338807524,1726923038969,-500.0,0.00014102,2]
[338807525,1726923038980,-500.0,0.00014102,2]
[338807526,1726923038990,-500.0,0.00014102,2]
[338807527,1726923039001,-500.0,0.00014102,2]
[338807528,1726923039011,-333.44400389,0.00014102,2]
[338807529,1726923039020,-500.0,0.00014102,2]
[338807530,1726923039029,-542.36421898,0.00014102,2]
[338807531,1726923039039,-500.0,0.00014102,2]
[338807532,1726923039049,-500.0,0.00014102,2]
[338807533,1726923039058,-500.0,0.00014102,2]
[338807534,1726923039070,-46182.3989841,0.00014103,2]
[338807535,1726923039080,-157.60850624,0.00014103,2]
[338807536,1726923039090,-46182.3989841,0.00014103,2]
[338807537,1726923039102,-500.0,0.00014104,2]
[338807538,1726923039111,-500.0,0.00014104,2]
[338807539,1726923039123,-500.0,0.00014104,2]
[338807540,1726923039134,-500.0,0.00014104,2]
[338807541,1726923039143,-500.0,0.00014104,2]
[338807542,1726923039153,-500.0,0.00014104,2]
[338807543,1726923039163,-500.0,0.00014104,2]
[338807544,1726923039173,-500.0,0.00014104,2]
[338807545,1726923039183,-500.0,0.00014104,2]
[338807546,1726923039192,-500.0,0.00014104,2]
[338807547,1726923039201,-617.18,0.00014104,2]
[338807548,1726923039210,-500.0,0.00014104,2]
[338807549,1726923039222,-500.0,0.00014104,2]
[338807550,1726923039236,-500.0,0.00014104,2]
[338807551,1726923039250,-500.0,0.00014104,2]
[338807552,1726923039264,-504.13918314,0.00014104,2]
[338807553,1726923039278,-500.0,0.00014104,2]
[338807554,1726923039291,-500.0,0.00014104,2]
[338807555,1726923039302,-500.0,0.00014104,2]
[338807556,1726923039315,-500.0,0.00014104,2]
[338807557,1726923039329,-1093.59,0.00014104,2]
[338807558,1726923039342,-500.0,0.00014104,2]
[338807559,1726923039355,-500.0,0.00014104,2]
[338807560,1726923039367,-160.15423691,0.00014104,2]
[338807561,1726923039380,-500.0,0.00014104,2]
[338807562,1726923039392,-500.0,0.00014104,2]
[338807563,1726923039405,-500.0,0.00014104,2]
[338807564,1726923039418,-500.0,0.00014104,2]
[338807565,1726923039430,-500.0,0.00014104,2]
[338807566,1726923039443,-500.0,0.00014104,2]
[338807567,1726923039456,-500.0,0.00014104,2]
[338807568,1726923039468,-500.0,0.00014104,2]
[338807569,1726923039479,-500.0,0.00014104,2]
[338807570,1726923039490,-500.0,0.00014104,2]
[338807571,1726923039501,-500.0,0.00014104,2]
[338807572,1726923039513,-500.52878967,0.00014104,2]
[338807573,1726923039526,-500.0,0.00014104,2]
[338807574,1726923039537,-337.24659837,0.00014104,2]
[338807575,1726923039548,-500.0,0.00014104,2]
[338807576,1726923039560,-500.0,0.00014104,2]
[338807577,1726923039570,-500.0,0.00014104,2]
[338807578,1726923039582,-500.0,0.00014104,2]
[338807579,1726923039593,-500.0,0.00014104,2]
[338807580,1726923039605,-500.0,0.00014104,2]
[338807581,1726923039616,-500.0,0.00014104,2]
[338807582,1726923039628,-500.0,0.00014104,2]
[338807583,1726923039641,-500.0,0.00014104,2]
[338807584,1726923039653,-500.0,0.00014104,2]
[338807585,1726923039666,-500.0,0.00014104,2]
[338807586,1726923039677,-500.0,0.00014104,2]
[338807587,1726923039691,-500.0,0.00014104,2]
[338807588,1726923039704,-501.36229555,0.00014104,2]
[338807589,1726923039718,-500.0,0.00014104,2]
[338807590,1726923039732,-500.0,0.00014104,2]
[338807591,1726923039746,-644.3855964,0.00014104,2]
[338807592,1726923039758,-500.0,0.00014104,2]
[338807593,1726923039767,-462.10035752,0.00014104,2]
[338807594,1726923039778,-500.0,0.00014104,2]
[338807595,1726923039789,-500.0,0.00014104,2]
[338807597,1726923039800,-250.3015318,0.00014104,2]
[338807599,1726923039812,-500.0,0.00014104,2]
[338807601,1726923039826,-500.0,0.00014104,2]
[338807603,1726923039841,-500.0,0.00014104,2]
[338807605,1726923039851,-500.0,0.00014104,2]
[338807606,1726923039861,-500.0,0.00014104,2]
[338807607,1726923039874,-500.0,0.00014104,2]
[338807608,1726923039886,-500.0,0.00014104,2]
[338807609,1726923039898,-500.0,0.00014104,2]
[338807610,1726923039914,-500.0,0.00014104,2]
[338807611,1726923039927,-161.5777381,0.00014104,2]
[338807612,1726923039939,-500.0,0.00014104,2]
[338807613,1726923039949,-500.0,0.00014104,2]
[338807614,1726923039960,-500.0,0.00014104,2]
[338807615,1726923039971,-500.0,0.00014104,2]
[338807616,1726923039982,-502.51985343,0.00014104,2]
[338807617,1726923039993,-500.0,0.00014104,2]
[338807618,1726923040003,-500.0,0.00014104,2]
[338807619,1726923040016,-500.0,0.00014104,2]
[338807620,1726923040028,-624.49859837,0.00014104,2]
[338807621,1726923040039,-500.0,0.00014104,2]
[338807622,1726923040052,-500.0,0.00014104,2]
[338807623,1726923040064,-500.0,0.00014104,2]
[338807624,1726923040075,-500.0,0.00014104,2]
[338807625,1726923040086,-500.0,0.00014104,2]
[338807626,1726923040097,-500.0,0.00014104,2]
[338807627,1726923040108,-500.0,0.00014104,2]
[338807628,1726923040120,-500.0,0.00014104,2]
[338807629,1726923040131,-500.0,0.00014104,2]
[338807630,1726923040142,-500.0,0.00014104,2]
[338807632,1726923040153,-500.0,0.00014104,2]
[338807634,1726923040164,-500.0,0.00014104,2]
[338807636,1726923040175,-500.0,0.00014104,2]
[338807637,1726923040185,-501.88814733,0.00014104,2]
[338807638,1726923040195,-500.0,0.00014104,2]
[338807639,1726923040205,-500.0,0.00014104,2]
[338807640,1726923040216,-500.0,0.00014104,2]
[338807641,1726923040226,-151.0,0.00014104,2]
[338807642,1726923040237,-500.0,0.00014104,2]
[338807643,1726923040248,-500.0,0.00014104,2]
[338807644,1726923040258,-500.0,0.00014104,2]
[338807645,1726923040270,-500.0,0.00014104,2]
[338807646,1726923040282,-500.0,0.00014104,2]
[338807647,1726923040294,-500.0,0.00014104,2]
[338807648,1726923040307,-500.0,0.00014104,2]
[338807649,1726923040319,-513.12045,0.00014104,2]
[338807650,1726923040332,-500.0,0.00014104,2]
[338807651,1726923040344,-500.0,0.00014104,2]
[338807652,1726923040356,-501.93302961,0.00014104,2]
[338807653,1726923040367,-14989.67,0.00014104,2]
[338807654,1726923040378,-513.12045,0.00014104,2]
[338807655,1726923040389,-500.894543,0.00014104,2]
[338807656,1726923040401,-500.0,0.00014104,2]
[338807657,1726923040414,-500.0,0.00014104,2]
[338807658,1726923040424,-500.894543,0.00014104,2]
[338807659,1726923040434,-500.0,0.00014104,2]
[338807660,1726923040444,-500.0,0.00014104,2]
[338807661,1726923040455,-2188.57,0.00014104,2]
[338807662,1726923040465,-500.0,0.00014104,2]
[338807663,1726923040476,-214.390999,0.00014104,2]
[338807664,1726923040487,-151.0,0.00014104,2]
[338807665,1726923040497,-214.390999,0.00014104,2]
[338807666,1726923040507,-428.24871143,0.00014104,2]
[338807667,1726923040518,-500.0,0.00014104,2]
[338807668,1726923040528,-500.0,0.00014104,2]
[338807669,1726923040539,-500.0,0.00014104,2]
[338807670,1726923040550,-151.0,0.00014104,2]
[338807671,1726923040561,-500.0,0.00014104,2]
[338807672,1726923040571,-500.0,0.00014104,2]
[338807673,1726923040585,-500.0,0.00014104,2]
[338807674,1726923040596,-500.0,0.00014104,2]
[338807675,1726923040606,-500.0,0.00014104,2]
[338807676,1726923040617,-375.793799,0.00014104,2]
[338807677,1726923040627,-356.12257363,0.00014104,2]
[338807678,1726923040639,-500.0,0.00014104,2]
[338807679,1726923040650,-375.793799,0.00014104,2]
[338807680,1726923040661,-500.0,0.00014104,2]
[338807681,1726923040672,-138547.196952,0.00014104,2]
[338807682,1726923040682,-500.0,0.00014112,2]
[338807683,1726923040693,-500.0,0.00014112,2]
[338807684,1726923040703,-500.0,0.00014112,2]
[338807685,1726923040716,-500.0,0.00014112,2]
[338807686,1726923040727,-500.0,0.00014112,2]
[338807687,1726923040738,-500.0,0.00014112,2]
[338807688,1726923040748,-500.0,0.00014112,2]
[338807689,1726923040759,-500.0,0.00014112,2]
[338807690,1726923040770,-575.16,0.00014112,2]
[338807691,1726923040781,-500.0,0.00014112,2]
[338807692,1726923040791,-594.06,0.00014113,2]
[338807693,1726923040803,-526.4,0.00014113,2]
[338807694,1726923040814,-500.0,0.00014113,2]
[338807695,1726923040825,-500.0,0.00014113,2]
[338807696,1726923040837,-500.0,0.00014113,2]
[338807697,1726923040849,-500.0,0.00014113,2]
[338807698,1726923040862,-500.0,0.00014113,2]
[338807699,1726923040873,-330.36822488,0.00014113,2]
[338807700,1726923040884,-500.0,0.00014113,2]
[338807701,1726923040895,-500.0,0.00014113,2]
[338807702,1726923040906,-500.0,0.00014113,2]
[338807703,1726923040916,-500.0,0.00014113,2]
[338807704,1726923040926,-393.1,0.00014113,2]
[338807705,1726923040937,-500.0,0.00014113,2]
[338807706,1726923040947,-500.0,0.00014113,2]
[338807707,1726923040958,-643.66236891,0.00014113,2]
[338807708,1726923040968,-500.0,0.00014113,2]
[338807709,1726923040979,-500.0,0.00014113,2]
[338807710,1726923040990,-810.0,0.00014113,2]
[338807711,1726923041000,-500.0,0.00014113,2]
[338807712,1726923041011,-500.0,0.00014113,2]
[338807713,1726923041023,-500.0,0.00014113,2]
[338807714,1726923041033,-554.32763161,0.00014113,2]
[338807715,1726923041044,-500.0,0.00014113,2]
[338807716,1726923041056,-500.0,0.00014113,2]
[338807717,1726923041066,-500.0,0.00014113,2]
[338807718,1726923041078,-500.0,0.00014113,2]
[338807719,1726923041091,-500.0,0.00014113,2]
[338807720,1726923041103,-500.0,0.00014113,2]
[338807721,1726923041114,-500.0,0.00014113,2]
[338807722,1726923041126,-500.0,0.00014113,2]
[338807723,1726923041137,-500.0,0.00014113,2]
[338807724,1726923041149,-500.0,0.00014113,2]
[338807725,1726923041161,-500.0,0.00014113,2]
[338807726,1726923041171,-500.0,0.00014113,2]
[338807727,1726923041182,-500.0,0.00014113,2]
[338807728,1726923041192,-500.0,0.00014113,2]
[338807729,1726923041202,-500.0,0.00014113,2]
[338807730,1726923041212,-385.48990677,0.00014113,2]
[338807731,1726923041222,-500.0,0.00014113,2]
[338807732,1726923041232,-500.0,0.00014113,2]
[338807733,1726923041242,-500.0,0.00014113,2]
[338807734,1726923041252,-500.0,0.00014113,2]
[338807735,1726923041262,-436.64733466,0.00014113,2]
[338807736,1726923041275,-500.0,0.00014113,2]
[338807737,1726923041287,-500.0,0.00014113,2]
[338807738,1726923041518,-500.0,0.00014113,2]
[338807739,1726923041538,-500.0,0.00014113,2]
[338807740,1726923041551,-500.0,0.00014113,2]
[338807741,1726923041560,-500.0,0.00014113,2]
[338807742,1726923041570,-500.0,0.00014113,2]
[338807743,1726923041583,-500.0,0.00014113,2]
[338807744,1726923041593,-500.0,0.00014113,2]
[338807745,1726923041604,-500.0,0.00014113,2]
[338807746,1726923041614,-1515.65,0.00014113,2]
[338807747,1726923041625,-500.0,0.00014113,2]
[338807748,1726923041634,-500.0,0.00014113,2]
[338807749,1726923041643,-500.0,0.00014113,2]
[338807750,1726923041654,-500.0,0.00014113,2]
[338807751,1726923041664,-500.0,0.00014113,2]
[338807752,1726923041675,-500.0,0.00014113,2]
[338807753,1726923041685,-500.0,0.00014113,2]
[338807754,1726923041694,-500.0,0.00014113,2]
[338807755,1726923041706,-500.0,0.00014113,2]
[338807756,1726923041715,-500.0,0.00014113,2]
[338807757,1726923041725,-500.0,0.00014113,2]
[338807758,1726923041735,-500.0,0.00014113,2]
[338807759,1726923041746,-500.0,0.00014113,2]
[338807760,1726923041757,-500.0,0.00014113,2]
[338807761,1726923041766,-500.0,0.00014113,2]
[338807762,1726923041775,-500.0,0.00014113,2]
[338807763,1726923041785,-500.0,0.00014113,2]
[338807764,1726923041794,-500.0,0.00014113,2]
[338807765,1726923041803,-500.0,0.00014113,2]
[338807766,1726923041813,-500.0,0.00014113,2]
[338807767,1726923041823,-500.0,0.00014113,2]
[338807768,1726923041832,-500.0,0.00014113,2]
[338807769,1726923041841,-500.0,0.00014113,2]
[338807770,1726923041850,-500.0,0.00014113,2]
[338807771,1726923041860,-500.0,0.00014113,2]
[338807772,1726923041870,-500.0,0.00014113,2]
[338807773,1726923041880,-500.0,0.00014113,2]
[338807774,1726923041889,-504.36070797,0.00014113,2]
[338807775,1726923041899,-500.0,0.00014113,2]
[338807776,1726923041908,-500.0,0.00014113,2]
[338807777,1726923041918,-500.0,0.00014113,2]
[338807778,1726923041930,-500.0,0.00014113,2]
[338807779,1726923041939,-500.0,0.00014113,2]
[338807780,1726923041948,-500.0,0.00014113,2]
[338807781,1726923041958,-500.0,0.00014113,2]
[338807782,1726923041967,-500.0,0.00014113,2]
[338807783,1726923041976,-709.93,0.00014113,2]
[338807784,1726923041986,-500.0,0.00014113,2]
[338807785,1726923041995,-500.0,0.00014113,2]
[338807786,1726923042004,-500.0,0.00014122,2]
[338807787,1726923042013,-500.0,0.00014122,2]
[338807788,1726923042024,-500.0,0.00014122,2]
[338807789,1726923042033,-500.0,0.00014122,2]
[338807790,1726923042042,-501.06847694,0.00014122,2]
[338807791,1726923042052,-500.56015894,0.00014122,2]
[338807792,1726923042061,-500.0,0.00014122,2]
[338807793,1726923042070,-500.0,0.00014122,2]
[338807794,1726923042080,-506.70542083,0.00014122,2]
[338807795,1726923042089,-500.0,0.00014122,2]
[338807796,1726923042099,-779.95,0.00014122,2]
[338807797,1726923042108,-500.0,0.00014122,2]
[338807798,1726923042118,-500.0,0.00014122,2]
[338807799,1726923042128,-500.0,0.00014122,2]
[338807800,1726923042137,-500.0,0.00014122,2]
[338807801,1726923042146,-500.0,0.00014122,2]
[338807802,1726923042156,-500.0,0.00014122,2]
[338807803,1726923042165,-500.0,0.00014122,2]
[338807804,1726923042175,-500.0,0.00014122,2]
[338807805,1726923042184,-500.0,0.00014122,2]
[338807806,1726923042193,-500.0,0.00014122,2]
[338807807,1726923042202,-500.0,0.00014122,2]
[338807808,1726923042211,-504.5349856,0.00014122,2]
[338807809,1726923042220,-500.0,0.00014122,2]
[338807810,1726923042230,-500.0,0.00014122,2]
[338807811,1726923042239,-500.0,0.00014122,2]
[338807812,1726923042249,-500.0,0.00014122,2]
[338807813,1726923042257,-500.0,0.00014122,2]
[338807814,1726923042267,-500.0,0.00014122,2]
[338807815,1726923042286,-500.0,0.00014122,2]
[338807816,1726923042296,-500.0,0.00014122,2]
[338807817,1726923042305,-500.0,0.00014122,2]
[338807818,1726923042314,-500.0,0.00014122,2]
[338807819,1726923042323,-501.63819716,0.00014122,2]
[338807820,1726923042333,-500.0,0.00014122,2]
[338807821,1726923042342,-500.0,0.00014122,2]
[338807822,1726923042351,-500.0,0.00014122,2]
[338807823,1726923042360,-500.0,0.00014122,2]
[338807824,1726923042370,-500.0,0.00014122,2]
[338807825,1726923042378,-500.0,0.00014122,2]
[338807826,1726923042387,-500.0,0.00014122,2]
[338807827,1726923042396,-500.0,0.00014122,2]
[338807828,1726923042406,-500.0,0.00014122,2]
[338807829,1726923042415,-500.0,0.00014122,2]
[338807830,1726923042424,-622.81,0.00014122,2]
[338807831,1726923042433,-500.0,0.00014122,2]
[338807832,1726923042443,-500.0,0.00014122,2]
[338807833,1726923042453,-500.0,0.00014122,2]
[338807834,1726923042462,-500.0,0.00014122,2]
[338807835,1726923042471,-500.0,0.00014122,2]
[338807836,1726923042480,-500.0,0.00014122,2]
[338807837,1726923042490,-500.0,0.00014122,2]
[338807838,1726923042499,-500.0,0.00014122,2]
[338807839,1726923042508,-500.0,0.00014122,2]
[338807840,1726923042518,-500.0,0.00014122,2]
[338807841,1726923042527,-500.0,0.00014122,2]
[338807842,1726923042538,-500.0,0.00014122,2]
[338807843,1726923042548,-500.0,0.00014122,2]
[338807844,1726923042557,-500.0,0.00014122,2]
[338807845,1726923042567,-500.0,0.00014122,2]
[338807846,1726923042576,-500.0,0.00014122,2]
[338807847,1726923042588,-500.0,0.00014122,2]
[338807848,1726923042597,-500.0,0.00014122,2]
[338807849,1726923042607,-500.0,0.00014123,2]